bitfinex-derivatives/quotes_BTCF0:USTF0_20210708
["timestamp","ask_amount","ask_price","bid_price","bid_amount"]
[1625704402427,5.2134,33111.0,33094.0,0.9748801]
[1625704402578,5.2134,33111.0,33109.0,0.24057544]
[1625704402731,5.2134,33111.0,33106.0,0.24057544]
[1625704402732,5.2134,33111.0,33106.0,0.057]
[1625704402877,5.2134,33111.0,33110.0,0.00491419]
[1625704403176,5.2134,33111.0,33102.0,0.24057544]
[1625704403177,5.2134,33111.0,33103.0,0.00491451]
[1625704403627,5.2134,33111.0,33103.0,0.06191451]
[1625704404077,0.057,33110.0,33099.0,0.24057544]
[1625704404233,0.057,33110.0,33088.0,1.22177788]
[1625704404538,0.057,33110.0,33082.0,2.16245733]
[1625704404686,0.72172632,33089.0,33084.0,0.24057544]
[1625704404830,0.99427632,33089.0,33084.0,0.24057544]
[1625704405128,0.99427632,33089.0,33085.0,0.00491075]
[1625704405578,1.05127632,33089.0,33085.0,0.00491075]
[1625704406028,1.05127632,33089.0,33078.0,0.0049114]
[1625704406179,1.05127632,33089.0,33077.0,0.24057544]
[1625704406482,1.05127632,33089.0,33078.0,0.00491104]
[1625704406631,0.72172632,33079.0,33078.0,0.00491104]
[1625704406780,1.00582632,33079.0,33067.0,0.00491164]
[1625704407081,1.00582632,33079.0,33078.0,0.00491166]
[1625704407383,1.00582632,33079.0,33068.0,0.0049118]
[1625704407681,1.00582632,33079.0,33066.0,0.24057544]
[1625704407682,1.00582632,33079.0,33078.0,0.00491174]
[1625704407832,0.52467544,33079.0,33078.0,0.00491174]
[1625704407994,0.24057544,33079.0,33066.0,0.24057544]
[1625704408132,0.24057544,33089.0,33068.0,1.221284]
[1625704408281,0.24057544,33089.0,33078.0,0.00491307]
[1625704408433,0.24057544,33089.0,33069.0,0.0049133]
[1625704408583,0.24057544,33102.0,33088.0,0.96230176]
[1625704408734,0.24057544,33102.0,33088.0,1.17474176]
[1625704409362,0.24057544,33109.0,33088.0,1.17474176]
[1625704409785,0.24057544,33109.0,33089.0,0.00491202]
[1625704410685,0.24057544,33109.0,33108.0,0.48115088]
[1625704410834,0.24057544,33109.0,33108.0,0.81539088]
[1625704411588,0.33017544,33109.0,33108.0,0.81539088]
[1625704411737,0.24057544,33109.0,33108.0,0.81539088]
[1625704412036,0.24057544,33118.0,33108.0,0.81539088]
[1625704412185,0.24057544,33118.0,33108.0,0.48115088]
[1625704412338,0.001,33110.0,33104.0,0.24057544]
[1625704412635,0.24057544,33105.0,33104.0,0.24057544]
[1625704412785,0.45804544,33105.0,33101.0,0.24057544]
[1625704412936,0.45804544,33105.0,33093.0,0.001]
[1625704413090,0.51504544,33105.0,33089.0,0.9041]
[1625704413235,0.51504544,33105.0,33072.0,1.57056795]
[1625704413838,0.2,33104.0,33086.0,0.8666]
[1625704413988,0.057,33103.0,33086.0,0.6864]
[1625704414287,0.0905,33109.0,33086.0,0.6864]
[1625704414442,0.001,33110.0,33086.0,0.90651]
[1625704414590,0.001,33110.0,33087.0,0.5]
[1625704414767,0.001,33110.0,33086.0,0.90651]
[1625704414768,0.001,33110.0,33109.0,0.96230176]
[1625704414888,0.001,33110.0,33109.0,1.26623176]
[1625704418343,0.002,33110.0,33109.0,1.26623176]
[1625704418641,0.002,33110.0,33109.0,1.76623176]
[1625704419093,0.0001,33125.0,33109.0,1.76623176]
[1625704419244,0.0001,33125.0,33109.0,1.82323176]
[1625704419769,0.0001,33125.0,33110.0,0.00489054]
[1625704420747,0.0001,33125.0,33124.0,0.96230176]
[1625704420896,0.0001,33125.0,33124.0,1.26193176]
[1625704421949,0.0001,33125.0,33124.0,0.96230176]
[1625704422998,0.0001,33125.0,33124.0,0.24057544]
[1625704423599,0.0001,33125.0,33124.0,0.22547544]
[1625704424652,0.48125088,33125.0,33124.0,0.22547544]
[1625704424952,0.57115088,33125.0,33124.0,0.22547544]
[1625704425104,0.48125088,33125.0,33124.0,0.22547544]
[1625704425854,0.48125088,33125.0,33120.0,0.24057544]
[1625704426008,0.75462088,33125.0,33120.0,0.24057544]
[1625704426605,0.75462088,33125.0,33121.0,0.00489221]
[1625704427531,0.75462088,33125.0,33120.0,0.24057544]
[1625704427657,0.75462088,33125.0,33119.0,0.001]
[1625704427658,0.0907,33124.0,33119.0,0.001]
[1625704427877,0.0907,33124.0,33089.0,1.21960061]
[1625704427878,0.6477,33124.0,33098.0,0.8565]
[1625704428105,0.2,33123.0,33098.0,0.8565]
[1625704428255,0.057,33122.0,33099.0,0.00487761]
[1625704428706,0.72172632,33100.0,33099.0,0.00487761]
[1625704428855,1.10476632,33100.0,33099.0,0.00487761]
[1625704429158,1.04776632,33100.0,33099.0,0.00487761]
[1625704429307,1.04776632,33100.0,33095.0,0.00487819]
[1625704429457,1.10476632,33100.0,33095.0,0.00487819]
[1625704429756,1.04776632,33100.0,33095.0,0.00487819]
[1625704430207,1.04776632,33100.0,33095.0,0.01377057]
[1625704430511,1.04776632,33100.0,33095.0,0.00487819]
[1625704430808,0.9186,33123.0,33099.0,0.24057544]
[1625704430809,0.24057544,33115.0,33099.0,0.24057544]
[1625704430958,0.24057544,33115.0,33099.0,0.48727544]
[1625704431345,0.29757544,33115.0,33100.0,0.01376808]
[1625704431634,0.24057544,33115.0,33100.0,0.01376808]
[1625704432834,0.24057544,33109.0,33107.0,0.24057544]
[1625704433133,0.24057544,33109.0,33108.0,0.00487684]
[1625704433282,0.24057544,33115.0,33108.0,0.00487684]
[1625704433283,0.057,33110.0,33108.0,0.00487684]
[1625704433433,0.057,33109.0,33108.0,0.00487684]
[1625704433584,0.34495,33113.0,33108.0,0.00487684]
[1625704434488,0.057,33112.0,33102.0,0.00487703]
[1625704434789,0.057,33112.0,33111.0,0.24057544]
[1625704435087,0.057,33112.0,33111.0,0.24545223]
[1625704436365,0.057,33112.0,33108.0,0.24057544]
[1625704436513,0.057,33112.0,33102.0,0.001]
[1625704436664,0.057,33112.0,33109.0,0.00487165]
[1625704436814,0.48115088,33110.0,33102.0,0.001]
[1625704436964,0.057,33109.0,33102.0,0.001]
[1625704437653,0.057,33109.0,33103.0,0.00486627]
[1625704438858,0.057,33109.0,33106.0,0.24057544]
[1625704439053,0.24057544,33110.0,33106.0,0.24057544]
[1625704439293,0.24057544,33110.0,33107.0,0.01377557]
[1625704439896,0.24057544,33110.0,33107.0,0.00488481]
[1625704440197,0.24057544,33110.0,33108.0,0.00488441]
[1625704440496,0.29757544,33110.0,33108.0,0.00488441]
[1625704440647,0.24057544,33110.0,33107.0,0.01377493]
[1625704440796,0.24057544,33110.0,33109.0,0.24057544]
[1625704441249,0.24057544,33110.0,33109.0,0.24546018]
[1625704441399,0.29757544,33110.0,33109.0,0.24546018]
[1625704441549,0.24057544,33110.0,33109.0,0.24546018]
[1625704441849,0.24057544,33110.0,33109.0,0.00488474]
[1625704442450,0.29757544,33110.0,33109.0,0.00488474]
[1625704442900,0.53815088,33110.0,33109.0,0.00488474]
[1625704443051,0.53815088,33110.0,33103.0,0.00488527]
[1625704444855,0.48115088,33104.0,33103.0,0.00488527]
[1625704445003,0.53815088,33104.0,33103.0,0.00488527]
[1625704447483,0.48115088,33104.0,33103.0,0.00488527]
[1625704448310,0.51115088,33104.0,33103.0,0.00488527]
[1625704451683,0.56815088,33104.0,33103.0,0.00488527]
[1625704452438,0.51115088,33104.0,33100.0,0.72172632]
[1625704452586,0.51115088,33104.0,33103.0,0.00489103]
[1625704453789,0.03,33104.0,33103.0,0.00489103]
[1625704453937,0.24057544,33110.0,33103.0,0.00489103]
[1625704454839,0.24057544,33110.0,33109.0,0.48115088]
[1625704454990,0.24057544,33110.0,33109.0,0.82206088]
[1625704455362,0.24057544,33110.0,33109.0,0.82695077]
[1625704455812,0.001,33113.0,33109.0,0.82695077]
[1625704456113,0.001,33113.0,33110.0,0.00488937]
[1625704456564,0.003,33123.0,33110.0,0.00488937]
[1625704456866,0.003,33123.0,33122.0,0.72172632]
[1625704457013,0.003,33123.0,33122.0,0.94707632]
[1625704457165,0.003,33123.0,33122.0,0.9519651]
[1625704457315,0.005,33125.0,33122.0,0.9519651]
[1625704457768,0.005,33125.0,33123.0,0.00488772]
[1625704458069,0.005,33125.0,33123.0,0.50488772]
[1625704458369,0.005,33125.0,33124.0,0.0048911]
[1625704458973,0.005,33125.0,33124.0,0.24546654]
[1625704459118,0.005,33125.0,33124.0,0.74546654]
[1625704459870,0.37675627,33143.0,33124.0,0.74546654]
[1625704460168,0.8728555,33149.0,33124.0,0.74546654]
[1625704460169,0.8728555,33149.0,33125.0,1.05708973]
[1625704460319,1.01830717,33150.0,33125.0,1.05708973]
[1625704460320,0.87313687,33150.0,33127.0,1.05705973]
[1625704460467,0.87313687,33150.0,33128.0,0.5]
[1625704460620,0.93050249,33151.0,33128.0,1.55704974]
[1625704460767,0.057,33151.0,33129.0,0.00488295]
[1625704460917,0.87322127,33152.0,33150.0,0.72172632]
[1625704461069,0.87360683,33153.0,33150.0,0.59026166]
[1625704461219,0.87360683,33153.0,33151.0,0.089]
[1625704461370,0.37320683,33153.0,33151.0,0.089]
[1625704461520,1.01897883,33160.0,33150.0,0.59026166]
[1625704461670,1.01931463,33161.0,33150.0,0.59026166]
[1625704461972,1.07613014,33160.0,33150.0,0.59026166]
[1625704462572,1.01910885,33158.0,33150.0,0.59026166]
[1625704462723,0.057,33157.0,33150.0,0.36635166]
[1625704463021,0.24057544,33153.0,33142.0,0.24057544]
[1625704463189,0.057,33152.0,33142.0,0.24057544]
[1625704463323,1.07386915,33152.0,33142.0,0.24057544]
[1625704464522,0.057,33152.0,33142.0,0.24057544]
[1625704464975,0.24057544,33143.0,33142.0,0.48115088]
[1625704465348,0.057,33152.0,33142.0,0.48115088]
[1625704465805,0.24057544,33153.0,33142.0,0.48115088]
[1625704466249,0.24057544,33153.0,33142.0,0.98115088]
[1625704466398,1.31005415,33162.0,33142.0,0.98115088]
[1625704466399,0.001,33154.0,33142.0,0.98115088]
[1625704466851,0.001,33154.0,33142.0,0.48115088]
[1625704467000,0.001,33154.0,33153.0,0.72172632]
[1625704467151,0.001,33154.0,33153.0,0.96256632]
[1625704468053,0.001,33154.0,33153.0,0.82956632]
[1625704469855,0.001,33154.0,33153.0,1.32956632]
[1625704470303,0.001,33154.0,33153.0,5.87346632]
[1625704470606,1.02265977,33173.0,33153.0,5.87346632]
[1625704470756,1.02867154,33174.0,33153.0,5.87346632]
[1625704470911,0.005,33174.0,33153.0,5.87346632]
[1625704471058,0.29757544,33172.0,33171.0,0.48115088]
[1625704471207,0.29757544,33172.0,33171.0,0.81992088]
[1625704471357,0.24057544,33172.0,33171.0,0.81992088]
[1625704471507,0.005,33174.0,33171.0,0.46476062]
[1625704471657,1.02653747,33181.0,33171.0,0.22377]
[1625704471959,1.26857584,33183.0,33171.0,0.22377]
[1625704472109,0.24057544,33183.0,33171.0,0.72377]
[1625704472410,0.005,33175.0,33171.0,0.72377]
[1625704472559,0.005,33175.0,33171.0,0.22377]
[1625704473085,0.5512369,33186.0,33174.0,0.72172632]
[1625704473235,1.1781462,33189.0,33174.0,0.72172632]
[1625704473537,0.24057544,33190.0,33174.0,0.72172632]
[1625704475037,0.24057544,33187.0,33183.0,0.24057544]
[1625704476986,0.24057544,33187.0,33186.0,0.24057544]
[1625704477136,0.24057544,33187.0,33186.0,0.52776544]
[1625704477437,0.24057544,33190.0,33186.0,0.52776544]
[1625704477736,0.24057544,33198.0,33186.0,0.52776544]
[1625704477887,0.24057544,33198.0,33186.0,0.28776]
[1625704479032,0.24057544,33198.0,33197.0,0.24057544]
[1625704479182,0.24057544,33206.0,33197.0,0.24057544]
[1625704479183,1.17451148,33204.0,33197.0,0.57820544]
[1625704479316,1.17518524,33207.0,33197.0,0.33763]
[1625704479475,0.003,33200.0,33197.0,0.3041]
[1625704479792,0.003,33200.0,33195.0,0.18976734]
[1625704481120,0.003,33200.0,33199.0,0.48115088]
[1625704481274,0.005,33210.0,33199.0,0.69420088]
[1625704482319,0.003,33200.0,33199.0,0.69420088]
[1625704484572,0.003,33200.0,33199.0,0.48115088]
[1625704484874,0.003,33200.0,33196.0,0.24057544]
[1625704485024,0.003,33200.0,33199.0,0.24057544]
[1625704486904,0.003,33200.0,33196.0,0.24057544]
[1625704487054,0.48115088,33197.0,33193.0,0.24057544]
[1625704488107,0.48115088,33197.0,33191.0,0.24057544]
[1625704488707,0.48115088,33197.0,33187.0,0.24057544]
[1625704489008,0.48115088,33197.0,33184.0,0.24057544]
[1625704489157,0.48115088,33185.0,33184.0,0.24057544]
[1625704489609,0.48115088,33185.0,33182.0,0.004]
[1625704490374,0.48115088,33185.0,33173.0,0.24057544]
[1625704491115,0.48115088,33174.0,33173.0,0.24057544]
[1625704491424,0.48115088,33185.0,33173.0,0.24057544]
[1625704491874,0.48115088,33185.0,33173.0,0.55504544]
[1625704492009,0.48115088,33185.0,33174.0,0.0048863]
[1625704492312,0.48115088,33185.0,33181.0,0.004]
[1625704492611,0.24057544,33185.0,33181.0,0.004]
[1625704492763,0.24057544,33185.0,33181.0,0.24656]
[1625704492913,0.9008,33204.0,33181.0,0.74656]
[1625704493063,0.24057544,33194.0,33193.0,0.24057544]
[1625704493216,0.24057544,33194.0,33190.0,0.30344]
[1625704494576,0.24057544,33201.0,33191.0,0.00488444]
[1625704495041,0.001,33213.0,33191.0,0.00488444]
[1625704495170,0.24057544,33208.0,33207.0,0.24057544]
[1625704495318,0.24057544,33208.0,33207.0,0.56545544]
[1625704496218,0.29757544,33208.0,33204.0,0.24057544]
[1625704496369,0.29757544,33208.0,33200.0,0.12633395]
[1625704496744,0.29757544,33208.0,33201.0,0.00488363]
[1625704497117,0.24057544,33202.0,33201.0,0.00488363]
[1625704497885,0.24057544,33202.0,33201.0,0.50488363]
[1625704498018,0.24057544,33208.0,33201.0,0.50488363]
[1625704498170,0.24057544,33208.0,33201.0,0.78801363]
[1625704498319,0.002,33202.0,33201.0,0.28313]
[1625704498917,0.002,33202.0,33201.0,0.28801269]
[1625704499227,0.002,33202.0,33201.0,0.48603357]
[1625704501173,0.24257544,33202.0,33201.0,0.24545813]
[1625704501320,0.29957544,33202.0,33201.0,0.24545813]
[1625704502227,0.53114544,33202.0,33201.0,0.24545813]
[1625704502378,0.53114544,33202.0,33192.0,0.48115088]
[1625704502826,0.53114544,33202.0,33193.0,0.01376041]
[1625704502972,0.47414544,33202.0,33193.0,0.01376041]
[1625704503122,0.47414544,33202.0,33196.0,0.24057544]
[1625704503274,0.24257544,33202.0,33196.0,0.24057544]
[1625704503424,0.057,33201.0,33196.0,0.24057544]
[1625704503574,0.24257544,33202.0,33196.0,0.24057544]
[1625704503723,0.24257544,33202.0,33197.0,0.01375989]
[1625704505225,0.24057544,33198.0,33197.0,0.01375989]
[1625704507343,0.24057544,33202.0,33197.0,0.01375989]
[1625704508607,0.29757544,33202.0,33197.0,0.01375989]
[1625704508760,0.24057544,33202.0,33197.0,0.01375989]
[1625704509209,0.24057544,33198.0,33197.0,0.01375989]
[1625704509520,0.24057544,33203.0,33197.0,0.01375989]
[1625704510560,0.057,33202.0,33197.0,0.01375989]
[1625704511013,0.24057544,33203.0,33197.0,0.01375989]
[1625704511163,0.24057544,33203.0,33202.0,0.24057544]
[1625704511615,0.29757544,33203.0,33202.0,0.25433632]
[1625704512889,0.24057544,33203.0,33202.0,0.25433632]
[1625704513264,0.24057544,33203.0,33202.0,0.24057544]
[1625704513565,0.24057544,33203.0,33202.0,0.2494436]
[1625704513716,0.29757544,33203.0,33202.0,0.2494436]
[1625704513864,0.29757544,33203.0,33202.0,0.24057544]
[1625704514844,0.29757544,33203.0,33202.0,0.24944388]
[1625704514990,0.29757544,33203.0,33202.0,0.49101388]
[1625704515141,0.29757544,33203.0,33202.0,0.48214544]
[1625704515744,0.24057544,33203.0,33202.0,0.48214544]
[1625704515891,0.29757544,33203.0,33202.0,0.48214544]
[1625704517166,0.29757544,33203.0,33202.0,0.24057544]
[1625704518216,0.24057544,33203.0,33202.0,0.24057544]
[1625704518368,0.24057544,33203.0,33202.0,0.53475544]
[1625704521070,0.24057544,33203.0,33202.0,0.54362266]
[1625704523774,0.29757544,33203.0,33202.0,0.24944266]
[1625704526775,0.61626544,33203.0,33202.0,0.24944266]
[1625704530005,0.61626544,33203.0,33202.0,0.24057544]
[1625704532107,0.61626544,33203.0,33199.0,0.001]
[1625704532407,0.61626544,33203.0,33200.0,0.0048921]
[1625704532714,0.15301402,33201.0,33200.0,0.0048921]
[1625704532882,0.21001402,33201.0,33200.0,0.0048921]
[1625704533011,0.21001402,33201.0,33194.0,0.002]
[1625704533012,0.057,33201.0,33194.0,0.002]
[1625704533308,0.48115088,33195.0,33194.0,0.002]
[1625704533457,0.75714088,33195.0,33194.0,0.002]
[1625704533759,0.75714088,33195.0,33194.0,0.01575512]
[1625704534733,0.48115088,33195.0,33194.0,0.01575512]
[1625704535332,0.48115088,33195.0,33194.0,0.25633056]
[1625704537285,0.48115088,33195.0,33194.0,0.25433056]
[1625704538034,0.48115088,33195.0,33194.0,0.43055165]
[1625704538336,0.48115088,33195.0,33194.0,0.25433056]
[1625704538634,0.48115088,33195.0,33194.0,0.43055328]
[1625704540285,0.48115088,33195.0,33194.0,0.25433056]
[1625704540736,0.24057544,33195.0,33194.0,0.25433056]
[1625704540889,0.24057544,33195.0,33194.0,0.24057544]
[1625704541112,0.24057544,33195.0,33194.0,0.43061166]
[1625704541412,0.24057544,33199.0,33194.0,0.43061166]
[1625704541716,0.24057544,33199.0,33195.0,0.01375164]
[1625704542313,0.24057544,33199.0,33195.0,0.19004723]
[1625704542764,0.24057544,33199.0,33196.0,0.01375182]
[1625704543367,0.33177544,33199.0,33198.0,0.24057544]
[1625704543817,0.33177544,33199.0,33198.0,0.24546049]
[1625704544117,0.33177544,33199.0,33198.0,0.25432804]
[1625704544584,0.38877544,33199.0,33198.0,0.25432804]
[1625704544718,0.45144134,33199.0,33198.0,0.00488505]
[1625704544873,0.91219982,33199.0,33198.0,0.00488505]
[1625704545019,1.83405959,33199.0,33198.0,0.00488505]
[1625704545168,1.83405959,33199.0,33195.0,0.00488548]
[1625704545317,0.48115088,33196.0,33195.0,0.00488548]
[1625704545468,0.69183018,33196.0,33195.0,0.00488548]
[1625704546669,0.53815088,33196.0,33195.0,0.00488548]
[1625704547121,0.69194797,33196.0,33195.0,0.00488548]
[1625704548021,0.99905497,33196.0,33195.0,0.00488548]
[1625704548247,0.69195123,33196.0,33195.0,0.00488548]
[1625704548547,0.69195123,33196.0,33194.0,0.24057544]
[1625704548697,0.69195123,33196.0,33195.0,0.00488407]
[1625704549223,0.53815088,33196.0,33195.0,0.00488407]
[1625704550125,0.69198752,33196.0,33195.0,0.01375256]
[1625704550350,0.15325616,33198.0,33195.0,0.01375256]
[1625704550801,0.76835307,33198.0,33195.0,0.01375256]
[1625704551105,0.15325616,33198.0,33195.0,0.01375256]
[1625704551404,0.15325616,33198.0,33195.0,0.254328]
[1625704551553,0.76812517,33198.0,33195.0,0.311328]
[1625704551855,0.15325616,33198.0,33196.0,0.00488358]
[1625704552306,0.15325616,33198.0,33196.0,0.0137522]
[1625704552458,0.61584077,33198.0,33196.0,0.0137522]
[1625704553056,0.61609599,33199.0,33196.0,0.0137522]
[1625704553356,0.61609599,33199.0,33198.0,0.24057544]
[1625704553656,0.92406699,33200.0,33198.0,0.25432642]
[1625704553657,0.61649756,33200.0,33198.0,0.25432642]
[1625704553842,0.61649756,33200.0,33198.0,0.31132642]
[1625704553961,0.001,33202.0,33199.0,0.72096062]
[1625704554108,0.001,33202.0,33199.0,1.09895062]
[1625704554258,0.001,33202.0,33201.0,0.70716036]
[1625704554558,0.001,33202.0,33199.0,0.01374948]
[1625704554707,0.3258,33202.0,33201.0,0.00488483]
[1625704554859,1.25171063,33202.0,33201.0,0.00488483]
[1625704555010,1.86879334,33202.0,33200.0,0.00488508]
[1625704555157,1.86879334,33202.0,33201.0,0.00488506]
[1625704555309,1.40531581,33202.0,33201.0,0.00488506]
[1625704555462,1.40531581,33202.0,33201.0,0.24057544]
[1625704555608,2.94794525,33202.0,33201.0,0.24057544]
[1625704555759,2.94794525,33202.0,33201.0,0.24546078]
[1625704556961,4.1812326,33202.0,33201.0,0.24546078]
[1625704557415,4.66238348,33202.0,33201.0,0.24546078]
[1625704559286,4.66138348,33202.0,33201.0,0.24546078]
[1625704560863,4.75188348,33202.0,33201.0,0.24546078]
[1625704561312,4.66138348,33202.0,33201.0,0.24546078]
[1625704561914,6.04807775,33202.0,33201.0,0.24546078]
[1625704563117,6.04807775,33202.0,33196.0,0.001]
[1625704563448,5.71125882,33197.0,33191.0,0.002]
[1625704563641,3.84291586,33192.0,33191.0,0.002]
[1625704563790,4.07909586,33192.0,33191.0,0.002]
[1625704563940,5.46071179,33192.0,33191.0,0.00688213]
[1625704564394,4.07909586,33192.0,33191.0,0.00688213]
[1625704565142,4.16999586,33192.0,33191.0,0.00688213]
[1625704565442,6.03313495,33192.0,33191.0,0.00688213]
[1625704565741,6.03313495,33192.0,33186.0,0.003]
[1625704565892,7.56819336,33192.0,33181.0,0.004]
[1625704566042,5.2172272,33187.0,33181.0,0.004]
[1625704566192,3.83302416,33182.0,33181.0,0.004]
[1625704566342,4.14478416,33182.0,33181.0,0.004]
[1625704566642,5.52319406,33182.0,33181.0,0.004]
[1625704567243,4.14478416,33182.0,33181.0,0.004]
[1625704567395,4.14478416,33182.0,33176.0,0.005]
[1625704567543,0.96230176,33177.0,33176.0,0.005]
[1625704567694,1.57398398,33177.0,33176.0,0.005]
[1625704567994,2.49134593,33177.0,33176.0,0.005]
[1625704568144,3.56103483,33177.0,33176.0,0.005]
[1625704568368,2.49134593,33177.0,33176.0,0.005]
[1625704568668,3.56117926,33177.0,33176.0,0.005]
[1625704569042,3.56117926,33177.0,33176.0,0.0014]
[1625704569496,2.49134593,33177.0,33176.0,0.0014]
[1625704569646,0.96230176,33177.0,33176.0,0.0014]
[1625704570245,1.01930176,33177.0,33163.0,1.23354724]
[1625704570395,5.25760176,33177.0,33164.0,0.70485481]
[1625704570545,5.25760176,33177.0,33164.0,0.70974144]
[1625704570694,0.61110563,33176.0,33164.0,0.00488663]
[1625704570846,0.057,33175.0,33161.0,0.70489606]
[1625704570997,0.61062604,33174.0,33159.0,0.70490383]
[1625704571147,0.057,33173.0,33159.0,0.70490383]
[1625704571297,0.66842586,33173.0,33158.0,0.70492508]
[1625704571447,0.66842586,33173.0,33160.0,0.00488709]
[1625704571598,0.66842586,33173.0,33159.0,0.00488709]
[1625704571897,0.66842586,33173.0,33156.0,0.70398494]
[1625704572050,0.66842586,33173.0,33155.0,0.9447]
[1625704572051,0.61509243,33172.0,33155.0,0.9447]
[1625704572198,0.057,33171.0,33157.0,0.00488725]
[1625704572350,0.49575,33171.0,33157.0,0.00488725]
[1625704572498,0.49575,33171.0,33152.0,0.9655]
[1625704572499,0.61600972,33170.0,33152.0,0.70394006]
[1625704572649,0.61593678,33168.0,33150.0,0.70399825]
[1625704572798,0.057,33167.0,33150.0,0.70399825]
[1625704572950,0.057,33167.0,33147.0,0.70405704]
[1625704572951,0.61534678,33165.0,33147.0,0.70405704]
[1625704573099,0.057,33164.0,33147.0,0.70405704]
[1625704573250,1.00272085,33164.0,33148.0,0.00488927]
[1625704573551,0.96230176,33149.0,33147.0,0.00488931]
[1625704573700,0.057,33148.0,33147.0,0.00488931]
[1625704573849,0.057,33148.0,33141.0,0.70268742]
[1625704574148,0.057,33148.0,33142.0,0.00488995]
[1625704574974,0.057,33148.0,33139.0,0.70268038]
[1625704575124,0.057,33148.0,33136.0,0.70273758]
[1625704575437,0.057,33148.0,33137.0,0.00489076]
[1625704575581,0.72172632,33138.0,33137.0,0.00489076]
[1625704575739,0.98314632,33138.0,33137.0,0.00489076]
[1625704576027,0.98314632,33138.0,33134.0,0.70614002]
[1625704576328,0.98314632,33138.0,33135.0,0.0048906]
[1625704576777,0.72172632,33138.0,33135.0,0.0048906]
[1625704576936,0.72172632,33138.0,33135.0,0.70109052]
[1625704577080,0.72172632,33138.0,33136.0,0.00489048]
[1625704577527,0.96230176,33138.0,33136.0,0.00489048]
[1625704578277,0.96230176,33138.0,33135.0,0.004]
[1625704578426,0.96230176,33138.0,33137.0,0.00489052]
[1625704578730,0.96230176,33138.0,33137.0,0.00489067]
[1625704579027,0.96230176,33138.0,33136.0,0.00489047]
[1625704579326,0.96230176,33138.0,33135.0,0.004]
[1625704579327,0.96230176,33138.0,33137.0,0.00489047]
[1625704579779,0.96230176,33138.0,33136.0,0.00489023]
[1625704582703,0.96230176,33138.0,33135.0,0.004]
[1625704582854,0.96230176,33138.0,33137.0,0.00488994]
[1625704583022,0.96230176,33138.0,33137.0,0.22605994]
[1625704583212,0.23387544,33138.0,33137.0,0.72117]
[1625704583356,0.9255,33156.0,33137.0,1.41956057]
[1625704583453,0.9255,33156.0,33137.0,1.42444958]
[1625704583619,0.24057544,33148.0,33147.0,0.24057544]
[1625704583768,0.24057544,33148.0,33147.0,0.47796544]
[1625704584054,0.24057544,33148.0,33147.0,0.48285417]
[1625704584803,0.24057544,33148.0,33147.0,0.24546417]
[1625704585103,7.544e-05,33148.0,33147.0,0.24546417]
[1625704585331,7.544e-05,33148.0,33147.0,0.74546417]
[1625704585629,7.544e-05,33148.0,33147.0,0.98603961]
[1625704585778,0.24057544,33155.0,33147.0,0.48603961]
[1625704585931,0.24057544,33155.0,33147.0,0.77917961]
[1625704586248,0.24057544,33155.0,33148.0,0.00488795]
[1625704587280,0.001,33149.0,33148.0,0.00488795]
[1625704587732,0.12557544,33155.0,33148.0,0.00488795]
[1625704587909,0.24057544,33158.0,33148.0,0.00488795]
[1625704588036,0.24057544,33158.0,33148.0,0.0137637]
[1625704588181,0.24057544,33158.0,33148.0,0.44999155]
[1625704588331,0.24057544,33158.0,33149.0,0.5]
[1625704588633,0.24057544,33158.0,33149.0,0.51375181]
[1625704588795,0.24057544,33158.0,33150.0,0.01375147]
[1625704589083,0.24057544,33158.0,33148.0,0.01375209]
[1625704589398,0.24057544,33158.0,33148.0,0.4499437]
[1625704589608,0.24057544,33158.0,33157.0,0.48115088]
[1625704589911,0.24057544,33158.0,33157.0,0.48602673]
[1625704590138,0.003,33159.0,33157.0,0.48602673]
[1625704590291,0.003,33160.0,33157.0,0.48602673]
[1625704590435,0.003,33160.0,33158.0,0.01375165]
[1625704592390,0.003,33160.0,33158.0,0.34890165]
[1625704592738,0.003,33160.0,33159.0,0.01375069]
[1625704594117,0.003,33160.0,33158.0,0.01375153]
[1625704594417,0.003,33160.0,33159.0,0.01375135]
[1625704594867,0.003,33160.0,33158.0,0.01375139]
[1625704596296,0.24057544,33164.0,33158.0,0.01375139]
[1625704596297,0.001,33162.0,33158.0,0.01375139]
[1625704597646,0.001,33162.0,33161.0,0.24057544]
[1625704598171,0.001,33162.0,33161.0,0.25432616]
[1625704599373,0.001,33162.0,33161.0,0.59566616]
[1625704600275,0.001,33162.0,33161.0,1.09566616]
[1625704602527,0.003,33172.0,33161.0,1.09566616]
[1625704602828,0.003,33172.0,33162.0,0.43705604]
[1625704602977,0.003,33172.0,33164.0,0.08740747]
[1625704603277,0.003,33172.0,33165.0,0.00887182]
[1625704603427,0.07702113,33191.0,33165.0,0.01374482]
[1625704603577,0.07705147,33192.0,33165.0,0.60114398]
[1625704603730,0.0772711,33200.0,33190.0,0.96230176]
[1625704603888,0.0772711,33200.0,33191.0,0.057]
[1625704604037,0.07738186,33205.0,33191.0,0.057]
[1625704604178,0.07738186,33205.0,33197.0,4.3084]
[1625704604348,0.07730152,33203.0,33197.0,4.3084]
[1625704604486,0.07730266,33202.0,33197.0,4.3084]
[1625704605077,0.30874776,33203.0,33197.0,4.3084]
[1625704605078,0.38613514,33204.0,33197.0,4.3084]
[1625704605229,0.07736263,33205.0,33197.0,4.63422]
[1625704605528,0.07734325,33204.0,33197.0,4.63422]
[1625704605755,0.24057544,33199.0,33198.0,0.24057544]
[1625704606056,0.07731953,33204.0,33198.0,0.24057544]
[1625704606504,0.38590943,33203.0,33198.0,0.24057544]
[1625704607197,0.07727443,33203.0,33198.0,0.24057544]
[1625704607515,0.38672664,33209.0,33198.0,0.24057544]
[1625704607644,0.38672664,33209.0,33208.0,0.48115088]
[1625704607779,0.07744655,33210.0,33208.0,0.75812088]
[1625704608079,0.31807686,33212.0,33208.0,0.75812088]
[1625704608229,0.0774856,33211.0,33208.0,0.75812088]
[1625704608529,0.32007375,33212.0,33208.0,0.75812088]
[1625704608980,0.24257544,33212.0,33208.0,0.75812088]
[1625704610255,0.24257544,33212.0,33208.0,0.27697]
[1625704610407,0.24257544,33212.0,33205.0,0.057]
[1625704610555,0.24257544,33212.0,33204.0,0.53815088]
[1625704611457,0.55891544,33212.0,33204.0,0.29757544]
[1625704611607,0.55891544,33212.0,33204.0,0.057]
[1625704611758,0.48115088,33205.0,33201.0,0.24057544]
[1625704611908,0.73663088,33205.0,33201.0,0.24057544]
[1625704613109,6.08773088,33205.0,33201.0,0.24057544]
[1625704613290,6.08773088,33205.0,33198.0,0.24057544]
[1625704613734,0.24057544,33199.0,33198.0,0.24057544]